fUSD/lending_fUSD_20250426
["ID","MTS","AMOUNT","RATE_DAILY","PERIOD"]
[359056641,1745680245651,-535.04,0.00019973,2]
[359056642,1745680245661,-400.0,0.00019973,2]
[359056643,1745680245677,-400.0,0.00019973,2]
[359056644,1745680245688,-400.0,0.00019973,2]
[359056645,1745680245698,-400.0,0.00019973,2]
[359056646,1745680245709,-156.30465013,0.00019973,2]
[359056647,1745680245720,-206.05235165,0.00019973,2]
[359056648,1745680245731,-755.04,0.00019973,2]
[359056649,1745680245742,-745.28,0.00019973,2]
[359056650,1745680245753,-591.62,0.00019973,2]
[359056651,1745680245763,-400.0,0.00019973,2]
[359056652,1745680245774,-466.68,0.00019973,2]
[359056653,1745680245784,-400.0,0.00019973,2]
[359056654,1745680245795,-400.0,0.00019973,2]
[359056655,1745680245805,-400.0,0.00019973,2]
[359056656,1745680245816,-400.0,0.00019973,2]
[359056657,1745680245827,-400.0,0.00019973,2]
[359056658,1745680245838,-400.0,0.00019973,2]
[359056659,1745680245850,-512.47,0.00019973,2]
[359056660,1745680245860,-605.87,0.00019973,2]
[359056661,1745680245872,-400.0,0.00019973,2]
[359056662,1745680245883,-400.0,0.00019973,2]
[359056663,1745680245893,-400.0,0.00019973,2]
[359056664,1745680245904,-500.0,0.00019973,2]
[359056665,1745680245915,-548.31,0.00019973,2]
[359056666,1745680245926,-202.72115054,0.00019973,2]
[359056667,1745680245936,-400.0,0.00019973,2]
[359056668,1745680245950,-257.71590563,0.00019973,2]
[359056669,1745680245960,-400.0,0.00019973,2]
[359056670,1745680245970,-200.0,0.00019973,2]
[359056671,1745680245981,-400.0,0.00019973,2]
[359056672,1745680245992,-400.0,0.00019973,2]
[359056673,1745680246003,-400.0,0.00019973,2]
[359056674,1745680246013,-400.0,0.00019973,2]
[359056675,1745680246024,-400.0,0.00019973,2]
[359056676,1745680246035,-406.15,0.00019973,2]
[359056677,1745680246046,-400.0,0.00019973,2]
[359056679,1745680246057,-400.0,0.00019973,2]
[359056681,1745680246067,-1834.14,0.00019973,2]
[359056683,1745680246079,-400.0,0.00019973,2]
[359056684,1745680246089,-400.0,0.00019973,2]
[359056685,1745680246100,-400.0,0.00019973,2]
[359056686,1745680246116,-519.26,0.00019973,2]
[359056687,1745680246127,-406.74,0.00019973,2]
[359056688,1745680246137,-575.67,0.00019973,2]
[359056689,1745680246148,-658.81,0.00019973,2]
[359056690,1745680246159,-869.9,0.00019973,2]
[359056691,1745680246170,-400.0,0.00019973,2]
[359056692,1745680246183,-400.0,0.00019973,2]
[359056693,1745680246194,-300.0,0.00019973,2]
[359056694,1745680246204,-405.55,0.00019973,2]
[359056695,1745680246215,-489.18,0.00019973,2]
[359056696,1745680246226,-400.0,0.00019973,2]
[359056697,1745680246238,-809.44,0.00019973,2]
[359056703,1745680246394,-400.0,0.00019973,2]
[359056705,1745680246404,-442.55224143,0.00019973,2]
[359056707,1745680246414,-400.0,0.00019973,2]
[359056709,1745680246424,-400.0,0.00019973,2]
[359056711,1745680246434,-400.0,0.00019973,2]
[359056713,1745680246443,-400.0,0.00019973,2]
[359056715,1745680246453,-400.0,0.00019973,2]
[359056717,1745680246462,-400.0,0.00019973,2]
[359056719,1745680246471,-408.08,0.00019973,2]
[359056721,1745680246481,-616.74,0.00019973,2]
[359056723,1745680246490,-400.0,0.00019973,2]
[359056725,1745680246500,-400.0,0.00019973,2]
[359056727,1745680246509,-468.59,0.00019973,2]
[359056730,1745680246527,-1147.57,0.00019973,2]
[359056732,1745680246541,-641.53,0.00019973,2]
[359056734,1745680246552,-400.0,0.00019973,2]
[359056736,1745680246563,-685.73,0.00019973,2]
[359056738,1745680246573,-400.0,0.00019973,2]
[359056740,1745680246583,-300.0,0.00019973,2]
[359056742,1745680246594,-400.0,0.00019973,2]
[359056744,1745680246605,-400.0,0.00019973,2]
[359056746,1745680246615,-400.0,0.00019973,2]
[359056748,1745680246625,-621.29,0.00019973,2]
[359056750,1745680246636,-1185.04,0.00019973,2]
[359056752,1745680246646,-400.0,0.00019973,2]
[359056754,1745680246656,-400.0,0.00019973,2]
[359056756,1745680246666,-400.0,0.00019973,2]
[359056758,1745680246675,-483.31,0.00019973,2]
[359056760,1745680246685,-400.0,0.00019973,2]
[359056762,1745680246696,-400.0,0.00019973,2]
[359056764,1745680246706,-400.0,0.00019973,2]
[359056766,1745680246716,-400.0,0.00019973,2]
[359056767,1745680246726,-850.15,0.00019973,2]
[359056770,1745680246736,-400.0,0.00019973,2]
[359056771,1745680246746,-400.81,0.00019973,2]
[359056773,1745680246756,-400.0,0.00019973,2]
[359056775,1745680246766,-400.0,0.00019973,2]
[359056777,1745680246776,-608.26,0.00019973,2]
[359056779,1745680246786,-946.04,0.00019973,2]
[359056781,1745680246796,-400.0,0.00019973,2]
[359056783,1745680246809,-400.0,0.00019973,2]
[359056785,1745680246819,-400.0,0.00019973,2]
[359056788,1745680246829,-428.15,0.00019973,2]
[359056790,1745680246838,-400.0,0.00019973,2]
[359056791,1745680246847,-400.0,0.00019973,2]
[359056794,1745680246858,-932.06,0.00019973,2]
[359056796,1745680246867,-1000.73,0.00019973,2]
[359056798,1745680246877,-400.0,0.00019973,2]
[359056799,1745680246886,-400.0,0.00019973,2]
[359056802,1745680246896,-725.6,0.00019973,2]
[359056803,1745680246906,-400.0,0.00019973,2]
[359056805,1745680246916,-400.0,0.00019973,2]
[359056807,1745680246926,-400.0,0.00019973,2]
[359056809,1745680246936,-400.0,0.00019973,2]
[359056811,1745680246945,-400.0,0.00019973,2]
[359056814,1745680246960,-400.0,0.00019973,2]
[359056816,1745680246970,-400.0,0.00019973,2]
[359056818,1745680246980,-576.82,0.00019973,2]
[359056820,1745680246990,-576.82,0.00019973,2]
[359056822,1745680246999,-400.0,0.00019973,2]
[359056824,1745680247009,-400.0,0.00019973,2]
[359056826,1745680247019,-490.54469982,0.00019973,2]
[359056828,1745680247029,-400.0,0.00019973,2]
[359056830,1745680247039,-400.0,0.00019973,2]
[359056832,1745680247050,-400.0,0.00019973,2]
[359056834,1745680247060,-759.39,0.00019973,2]
[359056836,1745680247069,-533.3,0.00019973,2]
[359056838,1745680247079,-400.0,0.00019973,2]
[359056840,1745680247090,-400.0,0.00019973,2]
[359056842,1745680247100,-332.51255439,0.00019973,2]
[359056844,1745680247110,-608.73,0.00019973,2]
[359056846,1745680247120,-400.0,0.00019973,2]
[359056848,1745680247130,-400.0,0.00019973,2]
[359056850,1745680247140,-400.0,0.00019973,2]
[359056852,1745680247149,-400.0,0.00019973,2]
[359056854,1745680247159,-400.0,0.00019973,2]
[359056856,1745680247169,-500.0,0.00019973,2]
[359056858,1745680247185,-400.0,0.00019973,2]
[359056860,1745680247196,-400.0,0.00019973,2]
[359056862,1745680247206,-400.0,0.00019973,2]
[359056864,1745680247216,-400.0,0.00019973,2]
[359056865,1745680247226,-808.25,0.00019973,2]
[359056868,1745680247236,-576.82,0.00019985,2]
[359056870,1745680247246,-381.683438,0.00019985,2]
[359056872,1745680247256,-375.97278,0.00019985,2]
[359056873,1745680247267,-1754.417,0.00019986,2]
[359056875,1745680247278,-207.4,0.00019988,2]
[359056878,1745680247289,-813.67971994,0.0001999,2]
[359056880,1745680247299,-813.67971994,0.0001999,2]
[359056882,1745680247308,-813.67971994,0.0001999,2]
[359056884,1745680247318,-500.0,0.00019999,2]
[359056886,1745680247328,-500.0,0.00019999,2]
[359056888,1745680247338,-300.0,0.00019999,2]
[359056890,1745680247349,-500.0,0.00019999,2]
[359056892,1745680247359,-500.0,0.00019999,2]
[359056894,1745680247368,-300.0,0.00019999,2]
[359056896,1745680247378,-650.01,0.00019999,2]
[359056898,1745680247388,-500.0,0.00019999,2]
[359056900,1745680247398,-151.0,0.00019999,2]
[359056902,1745680247409,-155.72437245,0.00019999,2]
[359056904,1745680247419,-576.82,0.00019999,2]
[359056906,1745680247429,-576.82,0.00019999,2]
[359056908,1745680247439,-576.82,0.00019999,2]
[359056910,1745680247449,-576.82,0.00019999,2]
[359056912,1745680247459,-576.82,0.00019999,2]
[359056913,1745680247468,-576.82,0.00019999,2]
[359056915,1745680247478,-576.82,0.00019999,2]
[359056917,1745680247488,-576.82,0.00019999,2]
[359056919,1745680247498,-576.82,0.00019999,2]
[359056921,1745680247508,-576.82,0.00019999,2]
[359056923,1745680247518,-576.82,0.00019999,2]
[359056925,1745680247527,-576.82,0.00019999,2]
[359056927,1745680247538,-576.82,0.00019999,2]
[359056929,1745680247547,-576.82,0.00019999,2]
[359056931,1745680247558,-576.82,0.00019999,2]
[359056934,1745680247567,-576.82,0.00019999,2]
[359056935,1745680247578,-576.82,0.00019999,2]
[359056937,1745680247587,-576.82,0.00019999,2]
[359056940,1745680247598,-576.82,0.00019999,2]
[359056942,1745680247607,-576.82,0.00019999,2]
[359056944,1745680247619,-576.99921698,0.00019999,2]
[359056945,1745680247629,-150.0,0.00019999,2]
[359056947,1745680247638,-500.0,0.00019999,2]
[359056950,1745680247649,-500.0,0.00019999,2]
[359056952,1745680247658,-604.04000324,0.00019999,2]
[359056954,1745680247669,-500.0,0.00019999,2]
[359056956,1745680247679,-500.0,0.00019999,2]
[359056958,1745680247689,-150.0,0.00019999,2]
[359056960,1745680247698,-200.0,0.00019999,2]
[359056962,1745680247708,-854.0,0.00019999,2]
[359056964,1745680247718,-406650.53784402,0.0002,2]
[359056966,1745680247727,-226.20042069,0.0002,2]
[359056968,1745680247737,-40409.14008893,0.0002,2]
[359056971,1745680247762,-250.0,0.0002,2]
[359057046,1745680248673,-81.88986859,0.00019972,2]
[359057055,1745680248759,-318.11013141,0.00019972,2]
[359057057,1745680248768,-479.01,0.00019972,2]
[359057059,1745680248778,-891771.92753314,0.0002,2]
[359057061,1745680248788,-91898.34510931,0.0002,2]
[359057063,1745680248797,-301.12735078,0.0002,2]
[359057065,1745680248807,-10000.0,0.0002,2]
[359057067,1745680248817,-1482.07178052,0.0002,2]
[359057069,1745680248827,-116280.09016484,0.0002,2]
[359057071,1745680248837,-50000.0,0.0002,2]
[359057073,1745680248846,-3052.01544059,0.0002,2]
[359057075,1745680248856,-1804.6,0.0002,2]
[359057078,1745680248866,-5397.0,0.0002,2]
[359057079,1745680248875,-5650.4371067,0.0002,2]
[359057081,1745680248885,-3975997.26224279,0.0002,2]
[359057083,1745680248898,-20769.92879833,0.0002,2]
[359057084,1745680248910,-60378.37839933,0.0002,2]
[359057085,1745680248921,-19473.77385123,0.0002,2]
[359057086,1745680333972,200.0,0.0003,30]
[359057087,1745680334398,200.0,0.0003,30]
[359057088,1745680334791,200.0,0.0003,30]
[359057089,1745680335453,200.0,0.0003,30]
[359057090,1745680335847,213.0,0.0003,30]
[359057091,1745680346151,250.0,0.00017,2]
[359057092,1745680347240,300.0,0.00019,2]
[359057093,1745680412151,-163.55366565,0.00019474,2]
[359057094,1745680457127,298.77,0.00016712,2]
[359057095,1745680457722,-152.0,0.00019376,2]
[359057096,1745680504964,1140.81,0.00019,2]
[359057097,1745680505003,175.65,0.00019,2]
[359057098,1745680506657,1316.46,0.00019,2]
[359057099,1745680507404,-200.075275,0.00019376,2]
[359057100,1745680507427,-12.13426587,0.00019474,2]
[359057101,1745680508342,1316.46,0.00019,2]
[359057102,1745680510133,1316.46,0.00019,2]
[359057103,1745680511787,1316.46,0.00019,2]
[359057104,1745680520672,5227.0,0.00037808,60]
[359057105,1745680531840,3000.0,0.00019034,2]
[359057106,1745680549825,259.53,0.0001902,2]
[359057107,1745680592196,499.99,0.00037808,60]
[359057108,1745680607277,1036.51,0.00018998,2]
[359057109,1745680639868,-1200.0,0.0001987,2]
[359057110,1745680639896,-300.0,0.0001987,2]
[359057111,1745680639923,-231.7893,0.00019871,2]
[359057112,1745680639948,-2080.9007,0.00019871,2]
[359057113,1745680639973,-264.0592,0.00019871,2]
[359057114,1745680640001,-1000.0,0.00019871,2]
[359057115,1745680640030,-5870.1012,0.00019871,2]
[359057116,1745680640058,-1793.58539667,0.00019871,2]
[359057117,1745680640084,-180.11777588,0.00019871,2]
[359057118,1745680640112,-1793.58539666,0.00019874,2]
[359057119,1745680640140,-1793.58539666,0.00019877,2]
[359057120,1745680640167,-1793.58539666,0.00019881,2]
[359057121,1745680640195,-1793.58539666,0.00019884,2]
[359057122,1745680640221,-1793.58539666,0.00019887,2]
[359057123,1745680640248,-1793.58539666,0.0001989,2]
[359057124,1745680640274,-418.51944415,0.00019894,2]
[359057125,1745680709451,262.47,0.00019036,2]
[359057126,1745680709475,1000.79,0.00019036,2]
[359057127,1745680709864,-218.29330747,0.00019572,2]
[359057129,1745680850388,-200.38864745,0.00019521,2]
[359057130,1745680874588,200.0,0.00019054,2]
[359057131,1745680875033,464.49,0.00019004,2]
[359057132,1745680958411,150.0,0.00018941,2]
[359057133,1745680973924,1185.51,0.00019054,2]
[359057134,1745680973946,2000.0,0.00019054,2]
[359057135,1745680973968,2000.0,0.00019054,2]
[359057136,1745680973989,1201.65,0.00019054,2]
[359057137,1745681016846,-400.0,0.00019484,2]
[359057138,1745681038868,2000.0,0.0001894,2]
[359057139,1745681038892,290.39,0.0001894,2]
[359057140,1745681048513,1709.61,0.00018942,2]
[359057141,1745681048538,2000.0,0.00018942,2]
[359057142,1745681048565,2000.0,0.00018942,2]
[359057143,1745681048594,2000.0,0.00018942,2]
[359057144,1745681048617,2000.0,0.00018942,2]
[359057145,1745681048638,2000.0,0.00018942,2]
[359057146,1745681048660,2000.0,0.00018942,2]
[359057147,1745681048682,2000.0,0.00018942,2]
[359057148,1745681048704,2000.0,0.00018942,2]
[359057149,1745681048726,2000.0,0.00018942,2]
[359057150,1745681048748,2000.0,0.00018942,2]
[359057151,1745681048770,2000.0,0.00018942,2]
[359057152,1745681048791,190.39,0.00018942,2]
[359057153,1745681052654,-330.25658491,0.00019484,2]
[359057154,1745681052679,-19.74341509,0.0001956,2]
[359057155,1745681071943,-495.08074267,0.000195,2]
[359057156,1745681078115,-150.0,0.000195,2]
[359057157,1745681102133,-178.68420621,0.00019499,2]
[359057158,1745681132879,1000.0,0.00018941,2]
[359057159,1745681136639,1000.0,9e-05,2]
[359057160,1745681136661,2000.0,9e-05,2]
[359057161,1745681136686,8999.21,9e-05,2]
[359057162,1745681136708,7474.56385123,9e-05,2]
[359057163,1745681153891,10109.89131663,0.000378,120]
[359057164,1745681159658,10000.0,0.0003,30]
[359057165,1745681169714,2000.0,0.0001255,2]
[359057166,1745681169738,2525.43614877,0.0001255,2]
[359057167,1745681169760,7974.56385123,0.0001255,2]
[359057168,1745681170832,-226.4037,0.00019499,2]
[359057169,1745681188837,2025.43614877,0.00012541,2]
[359057170,1745681188865,10000.0,0.00012541,2]
[359057171,1745681188890,474.56385123,0.00012541,2]
[359057172,1745681189484,-197.65509821,0.00019499,2]
[359057173,1745681190757,5000.0,0.000192,2]
[359057174,1745681201533,177.43,0.00027425,30]
[359057175,1745681201659,-200.0,0.00019401,2]
[359057182,1745681241595,251.0368378,0.000101,2]
[359057187,1745681266494,4274.39931097,0.000192,2]
[359057188,1745681266516,10000.0,0.000192,2]
[359057189,1745681266537,10000.0,0.000192,2]
[359057190,1745681266557,10000.0,0.000192,2]
[359057191,1745681266582,10000.0,0.000192,2]
[359057192,1745681266604,10000.0,0.000192,2]
[359057193,1745681266626,10000.0,0.000192,2]
[359057194,1745681266650,10000.0,0.000192,2]
[359057195,1745681266672,10000.0,0.000192,2]
[359057196,1745681266695,10000.0,0.000192,2]
[359057197,1745681266719,5725.60068903,0.000192,2]
[359057198,1745681267175,-503.11369379,0.00019499,2]
[359057199,1745681282596,-159.075377,0.00019401,2]
[359057201,1745681295732,200.0,0.0001634,2]
[359057202,1745681297345,194.65874869,0.000135,2]
[359057203,1745681298708,527.71,0.00017023,2]
[359057204,1745681299815,-253.87186521,0.00019287,2]
[359057205,1745681306881,378.41032111,7.888e-05,2]
[359057206,1745681320002,259.19856832,0.000107,2]
[359057207,1745681321564,2000.0,0.00019066,2]
[359057209,1745681324688,714.42167285,0.00013368,2]
[359057211,1745681324711,205.92602652,0.00013368,2]
[359057220,1745681325326,-273.83813479,0.00019287,2]
[359057221,1745681325350,-26.16186521,0.00019401,2]
[359057222,1745681348420,9794.07397348,7.945e-05,2]
[359057223,1745681348441,328.85595852,7.945e-05,2]
[359057232,1745681370143,-150.95202356,0.00019401,2]
[359057245,1745681432088,-352.21192553,0.00019401,2]
[359057246,1745681432103,-258.02159091,0.00019401,2]
[359057247,1745681432114,-2354.91925733,0.000195,2]
[359057248,1745681432125,-166.66,0.00019508,2]
[359057249,1745681432138,-132.09658491,0.0001956,2]
[359057250,1745681432149,-1870.29869253,0.00019572,2]
[359057251,1745681432160,-2121.07675021,0.00019702,2]
[359057252,1745681432170,-2944.45063566,0.00019706,2]
[359057253,1745681432181,-22343.39891161,0.00019717,2]
[359057254,1745681432192,-22343.39891161,0.00019717,2]
[359057255,1745681432203,-2121.07675021,0.00019737,2]
[359057256,1745681432213,-701.40124338,0.00019744,2]
[359057257,1745681432224,-914.29776588,0.0001975,2]
[359057258,1745681432234,-200.0,0.00019755,2]
[359057259,1745681432245,-871.41327199,0.00019757,2]
[359057260,1745681432256,-1500.0,0.00019771,2]
[359057262,1745681432268,-2944.45063566,0.00019797,2]
[359057264,1745681432278,-1200.0,0.00019799,2]
[359057266,1745681432289,-1678.31715218,0.000198,2]
[359057268,1745681432299,-13929.98144445,0.0001983,2]
[359057270,1745681432310,-207.4,0.00019859,2]
[359057272,1745681432320,-496.22367461,0.0001987,2]
[359057274,1745681432331,-2279.5855,0.00019871,2]
[359057276,1745681432341,-937.16615796,0.00019871,2]
[359057278,1745681432352,-496.22367458,0.00019873,2]
[359057280,1745681432362,-496.22367458,0.00019877,2]
[359057282,1745681432373,-496.22367458,0.0001988,2]
[359057284,1745681432383,-496.22367458,0.00019883,2]
[359057286,1745681432393,-496.22367458,0.00019887,2]
[359057287,1745681432403,-496.22367458,0.0001989,2]
[359057288,1745681432412,-496.22367458,0.00019893,2]
[359057289,1745681432422,-496.22367458,0.00019897,2]
[359057291,1745681432432,-496.22367458,0.000199,2]
[359057294,1745681432442,-351.4,0.000199,2]
[359057297,1745681432452,-937.16615796,0.00019926,2]
[359057299,1745681432462,-267.96,0.0001996,2]
[359057301,1745681432471,-596.84,0.00019969,2]
[359057303,1745681432482,-4233.908068,0.00019969,2]
[359057305,1745681432491,-560.63,0.00019969,2]
[359057308,1745681432501,-1057.51,0.00019969,2]
[359057311,1745681432512,-190.841719,0.00019969,2]
[359057314,1745681432522,-2947.38,0.00019969,2]
[359057317,1745681432531,-400.0,0.00019969,2]
[359057320,1745681432541,-187.98639,0.00019969,2]
[359057323,1745681432551,-538.87,0.00019969,2]
[359057326,1745681432560,-592.53,0.00019969,2]
[359057329,1745681432570,-400.0,0.00019969,2]
[359057332,1745681432580,-400.0,0.00019969,2]
[359057335,1745681432590,-437.66,0.00019969,2]
[359057338,1745681432599,-541.69,0.00019969,2]
[359057341,1745681432609,-478.51,0.00019969,2]
[359057343,1745681432619,-400.0,0.00019969,2]
[359057346,1745681432629,-862.47,0.00019969,2]
[359057349,1745681432639,-400.0,0.00019969,2]
[359057353,1745681432649,-3500.36,0.00019969,2]
[359057354,1745681432659,-400.0,0.00019969,2]
[359057356,1745681432669,-442.46,0.00019969,2]
[359057358,1745681432683,-400.0,0.00019969,2]
[359057360,1745681432693,-487.02,0.00019969,2]
[359057362,1745681432703,-400.0,0.00019969,2]
[359057364,1745681432712,-546.27,0.00019969,2]
[359057366,1745681432723,-400.0,0.00019969,2]
[359057368,1745681432734,-858.66,0.00019969,2]
[359057370,1745681432744,-400.0,0.00019969,2]
[359057372,1745681432754,-400.0,0.00019969,2]
[359057374,1745681432765,-460.5,0.00019969,2]
[359057376,1745681432775,-1005.92,0.00019969,2]
[359057377,1745681432786,-400.0,0.00019969,2]
[359057379,1745681432796,-400.0,0.00019969,2]
[359057381,1745681432807,-821.74,0.00019969,2]
[359057383,1745681432817,-400.0,0.00019969,2]
[359057385,1745681432826,-400.0,0.00019969,2]
[359057387,1745681432836,-812.64,0.00019969,2]
[359057389,1745681432846,-439.06,0.00019969,2]
[359057391,1745681432855,-603.6,0.00019969,2]
[359057393,1745681432865,-758.36,0.00019969,2]
[359057395,1745681432875,-532.17,0.00019969,2]
[359057397,1745681432884,-1056.38,0.00019969,2]
[359057399,1745681432894,-400.0,0.00019969,2]
[359057401,1745681432905,-852.1,0.00019969,2]
[359057403,1745681432915,-400.0,0.00019969,2]
[359057405,1745681432926,-400.0,0.00019969,2]
[359057407,1745681432936,-697.26,0.00019969,2]
[359057409,1745681432946,-834.29,0.00019969,2]
[359057411,1745681432955,-541.17,0.00019969,2]
[359057413,1745681432965,-661.98,0.00019969,2]
[359057415,1745681432974,-452.73,0.00019969,2]
[359057417,1745681432984,-713.08,0.00019969,2]
[359057419,1745681432994,-8877.4,0.00019969,2]
[359057421,1745681433004,-400.0,0.00019969,2]
[359057423,1745681433014,-186.50422207,0.00019969,2]
[359057425,1745681433024,-817.87,0.00019969,2]
[359057427,1745681433035,-400.0,0.00019969,2]
[359057429,1745681433045,-400.0,0.00019969,2]
[359057430,1745681433055,-630.56,0.00019969,2]
[359057432,1745681433065,-411.99,0.00019969,2]
[359057434,1745681433075,-736.16,0.00019969,2]
[359057436,1745681433086,-977.22,0.00019969,2]
[359057438,1745681433097,-400.0,0.00019969,2]
[359057440,1745681433107,-400.0,0.00019969,2]
[359057442,1745681433117,-562.72,0.00019969,2]
[359057444,1745681433127,-594.03,0.00019969,2]
[359057447,1745681433138,-906.61,0.00019969,2]
[359057448,1745681433147,-400.0,0.00019969,2]
[359057450,1745681433157,-400.0,0.00019969,2]
[359057452,1745681433167,-400.0,0.00019969,2]
[359057454,1745681433177,-400.0,0.00019969,2]
[359057456,1745681433187,-400.0,0.00019969,2]
[359057458,1745681433197,-598.14,0.00019969,2]
[359057460,1745681433207,-400.0,0.00019969,2]
[359057462,1745681433216,-400.0,0.00019969,2]
[359057464,1745681433226,-400.0,0.00019969,2]
[359057466,1745681433238,-400.0,0.00019969,2]
[359057468,1745681433249,-400.0,0.00019969,2]
[359057470,1745681433259,-400.0,0.00019969,2]
[359057472,1745681433269,-644.64,0.00019969,2]
[359057474,1745681433279,-400.0,0.00019969,2]
[359057476,1745681433291,-400.0,0.00019969,2]
[359057478,1745681433301,-163.190797,0.00019969,2]
[359057480,1745681433311,-718.79,0.00019969,2]
[359057482,1745681433321,-489.76330355,0.00019969,2]
[359057484,1745681433330,-400.0,0.0001997,2]
[359057486,1745681433340,-500.0,0.0001997,2]
[359057511,1745681433607,-400.0,0.0001997,2]
[359057514,1745681433624,-400.0,0.0001997,2]
[359057516,1745681433634,-400.0,0.0001997,2]
[359057517,1745681433644,-200.94829272,0.0001997,2]
[359057519,1745681433654,-200.0,0.0001997,2]
[359057521,1745681433663,-865.78,0.0001997,2]
[359057523,1745681433672,-400.0,0.0001997,2]
[359057525,1745681433686,-294.48053895,0.0001997,2]
[359057527,1745681433696,-400.0,0.0001997,2]
[359057529,1745681433711,-400.0,0.0001997,2]
[359057531,1745681433721,-187.42772855,0.0001997,2]
[359057533,1745681433731,-400.0,0.0001997,2]
[359057535,1745681433741,-400.0,0.0001997,2]
[359057537,1745681433750,-152.68415493,0.0001997,2]
[359057539,1745681433760,-500.0,0.0001997,2]
[359057541,1745681433770,-400.0,0.0001997,2]
[359057543,1745681433779,-400.0,0.0001997,2]
[359057545,1745681433790,-477.27604977,0.0001997,2]
[359057547,1745681433799,-400.0,0.0001997,2]
[359057549,1745681433809,-400.0,0.0001997,2]
[359057551,1745681433818,-400.0,0.0001997,2]
[359057553,1745681433828,-400.0,0.0001997,2]
[359057555,1745681433838,-400.0,0.0001997,2]
[359057557,1745681433847,-400.0,0.0001997,2]
[359057559,1745681433857,-403.62,0.0001997,2]
[359057561,1745681433867,-400.0,0.0001997,2]
[359057563,1745681433876,-200.0,0.0001997,2]
[359057565,1745681433885,-400.0,0.0001997,2]
[359057567,1745681433895,-400.0,0.0001997,2]
[359057569,1745681433905,-400.0,0.0001997,2]
[359057571,1745681433915,-666.24,0.0001997,2]
[359057573,1745681433925,-861.51,0.0001997,2]
[359057575,1745681433935,-400.0,0.0001997,2]
[359057577,1745681433944,-500.0,0.0001997,2]
[359057579,1745681433954,-400.0,0.0001997,2]
[359057581,1745681433965,-400.0,0.0001997,2]
[359057583,1745681433975,-400.0,0.0001997,2]
[359057585,1745681433984,-400.0,0.0001997,2]
[359057587,1745681433994,-400.0,0.0001997,2]
[359057589,1745681434004,-400.0,0.0001997,2]
[359057591,1745681434014,-400.0,0.0001997,2]
[359057593,1745681434024,-400.0,0.0001997,2]
[359057595,1745681434034,-219.08984831,0.0001997,2]
[359057597,1745681434044,-407.21,0.0001997,2]
[359057599,1745681434053,-200.0,0.0001997,2]
[359057601,1745681434063,-1913.89,0.0001997,2]
[359057602,1745681434072,-400.0,0.0001997,2]
[359057604,1745681434082,-418.61,0.0001997,2]
[359057606,1745681434091,-400.0,0.0001997,2]
[359057608,1745681434100,-400.0,0.0001997,2]
[359057610,1745681434110,-400.0,0.0001997,2]
[359057612,1745681434120,-250.0,0.0001997,2]
[359057614,1745681434130,-400.0,0.0001997,2]
[359057616,1745681434140,-500.0,0.0001997,2]